[Event "Titled Tuesday Blitz August 08 Early 2023"]
[White "Gavilan Diaz, Mario"]
[Black "Fernandez Siles, Luis"]
[WhiteFideId "2260905"]
[BlackFideId "2209420"]
[WhiteElo "2481"]
[BlackElo "2329"]
[Result "1-0"]
[Round "11"]
[TimeControl "180+1"]
[Date "2023.08.08"]
[WhiteClock "0:01:25"]
[BlackClock "0:00:33"]
[Board "101"]

1. d4 {[%clk 0:02:53]}  Nf6 {[%clk 0:02:59]} 2. Nc3 {[%clk 0:02:53]}  d5 {[%clk 0:02:58]} 3. Bf4 {[%clk 0:02:53]}  c5 {[%clk 0:02:58]} 4. e3 {[%clk 0:02:51]}  a6 {[%clk 0:02:54]} 5. Nf3 {[%clk 0:02:51]}  Nc6 {[%clk 0:02:53]} 6. Be2 {[%clk 0:02:51]}  Bg4 {[%clk 0:02:50]} 7. h3 {[%clk 0:02:49]}  Bxf3 {[%clk 0:02:49]} 8. Bxf3 {[%clk 0:02:49]}  e6 {[%clk 0:02:50]} 9. O-O {[%clk 0:02:49]}  Be7 {[%clk 0:02:49]} 10. dxc5 {[%clk 0:02:35]}  O-O {[%clk 0:02:28]} 11. e4 {[%clk 0:02:28]}  dxe4 {[%clk 0:02:24]} 12. Nxe4 {[%clk 0:02:28]}  Nxe4 {[%clk 0:02:21]} 13. Bxe4 {[%clk 0:02:27]}  Qxd1 {[%clk 0:02:11]} 14. Raxd1 {[%clk 0:02:27]}  Bxc5 {[%clk 0:02:10]} 15. Rd7 {[%clk 0:02:27]}  Ra7 {[%clk 0:01:34]} 16. Rfd1 {[%clk 0:02:17]}  f5 {[%clk 0:01:21]} 17. Bf3 {[%clk 0:01:48]}  Rf7 {[%clk 0:01:19]} 18. c3 {[%clk 0:01:33]}  a5 {[%clk 0:01:02]} 19. a4 {[%clk 0:01:30]}  h6 {[%clk 0:00:52]} 20. h4 {[%clk 0:01:29]}  Rxd7 {[%clk 0:00:41]} 21. Rxd7 {[%clk 0:01:28]}  b6 {[%clk 0:00:33]} 22. Bxc6 {[%clk 0:01:25]} 1-0


[Site "https://www.chess.com"]

[Event "Titled Tuesday Blitz August 08 Early 2023"]
[White "Ljukin, Sergei"]
[Black "Fominykh, Maria"]
[WhiteFideId "14102200"]
[BlackFideId "4142411"]
[WhiteElo "2475"]
[BlackElo "2314"]
[Result "1-0"]
[Round "11"]
[TimeControl "180+1"]
[Date "2023.08.08"]
[WhiteClock "0:00:56"]
[BlackClock "0:00:00"]
[Board "103"]

1. e4 {[%clk 0:02:46]}  e6 {[%clk 0:02:57]} 2. d4 {[%clk 0:02:45]}  d5 {[%clk 0:02:57]} 3. Nc3 {[%clk 0:02:44]}  Bb4 {[%clk 0:02:52]} 4. e5 {[%clk 0:02:44]}  c5 {[%clk 0:02:52]} 5. a3 {[%clk 0:02:44]}  Bxc3+ {[%clk 0:02:51]} 6. bxc3 {[%clk 0:02:45]}  Ne7 {[%clk 0:02:50]} 7. h4 {[%clk 0:02:44]}  Qc7 {[%clk 0:02:49]} 8. h5 {[%clk 0:02:44]}  cxd4 {[%clk 0:02:45]} 9. cxd4 {[%clk 0:02:43]}  Qc3+ {[%clk 0:02:35]} 10. Bd2 {[%clk 0:02:42]}  Qxd4 {[%clk 0:02:35]} 11. Nf3 {[%clk 0:02:42]}  Qe4+ {[%clk 0:02:28]} 12. Be2 {[%clk 0:02:13]}  Nbc6 {[%clk 0:02:23]} 13. Rh4 {[%clk 0:02:09]}  O-O {[%clk 0:01:24]} 14. Rxe4 {[%clk 0:02:02]}  dxe4 {[%clk 0:01:25]} 15. Ng5 {[%clk 0:02:01]}  Nxe5 {[%clk 0:01:24]} 16. Nxe4 {[%clk 0:02:01]}  Rd8 {[%clk 0:01:21]} 17. Qc1 {[%clk 0:01:55]}  f5 {[%clk 0:01:07]} 18. Bg5 {[%clk 0:01:44]}  fxe4 {[%clk 0:00:48]} 19. Bxe7 {[%clk 0:01:43]}  Rd7 {[%clk 0:00:45]} 20. Bb4 {[%clk 0:01:40]}  Nc6 {[%clk 0:00:30]} 21. h6 {[%clk 0:01:24]}  Nd4 {[%clk 0:00:16]} 22. Bc3 {[%clk 0:01:17]}  Nxe2 {[%clk 0:00:09]} 23. Kxe2 {[%clk 0:01:15]}  b6 {[%clk 0:00:09]} 24. Bxg7 {[%clk 0:01:06]}  Ba6+ {[%clk 0:00:08]} 25. Ke1 {[%clk 0:01:06]}  Rad8 {[%clk 0:00:06]} 26. Qg5 {[%clk 0:01:04]}  Kf7 {[%clk 0:00:05]} 27. Qf4+ {[%clk 0:00:58]}  Kg8 {[%clk 0:00:00]} 28. Bc3 {[%clk 0:00:56]} 1-0


[Site "https://www.chess.com"]

[Event "Titled Tuesday Blitz August 08 Early 2023"]
[White "Putri, Regita Desyari"]
[Black "Kukreja Sankalp"]
[WhiteFideId "7109083"]
[BlackFideId "45027676"]
[WhiteElo "2195"]
[BlackElo "2438"]
[Result "0-1"]
[Round "11"]
[TimeControl "180+1"]
[Date "2023.08.08"]
[WhiteClock "0:00:10"]
[BlackClock "0:00:16"]
[Board "104"]

1. e4 {[%clk 0:03:00]}  c5 {[%clk 0:02:50]} 2. Nf3 {[%clk 0:02:59]}  g6 {[%clk 0:02:50]} 3. c4 {[%clk 0:02:58]}  Bg7 {[%clk 0:02:50]} 4. Nc3 {[%clk 0:02:58]}  Nc6 {[%clk 0:02:50]} 5. d3 {[%clk 0:02:54]}  d6 {[%clk 0:02:49]} 6. Be2 {[%clk 0:02:54]}  e5 {[%clk 0:02:50]} 7. O-O {[%clk 0:02:54]}  Nge7 {[%clk 0:02:51]} 8. Rb1 {[%clk 0:02:51]}  O-O {[%clk 0:02:50]} 9. a3 {[%clk 0:02:51]}  a5 {[%clk 0:02:47]} 10. Be3 {[%clk 0:02:43]}  f5 {[%clk 0:02:43]} 11. Bg5 {[%clk 0:02:40]}  h6 {[%clk 0:02:39]} 12. Bxe7 {[%clk 0:02:39]}  Nxe7 {[%clk 0:02:40]} 13. b4 {[%clk 0:02:38]}  axb4 {[%clk 0:02:34]} 14. axb4 {[%clk 0:02:39]}  Ra3 {[%clk 0:02:29]} 15. Nb5 {[%clk 0:02:37]}  Ra8 {[%clk 0:02:25]} 16. Qb3 {[%clk 0:02:17]}  b6 {[%clk 0:02:20]} 17. Ra1 {[%clk 0:02:11]}  Rxa1 {[%clk 0:01:59]} 18. Rxa1 {[%clk 0:02:12]}  Nc6 {[%clk 0:02:00]} 19. bxc5 {[%clk 0:02:09]}  bxc5 {[%clk 0:02:01]} 20. Bf1 {[%clk 0:01:57]}  Qb6 {[%clk 0:01:54]} 21. Qa2 {[%clk 0:01:49]}  Nb4 {[%clk 0:01:46]} 22. Qa7 {[%clk 0:01:46]}  Qxa7 {[%clk 0:01:39]} 23. Rxa7 {[%clk 0:01:45]}  fxe4 {[%clk 0:01:40]} 24. dxe4 {[%clk 0:01:44]}  Bg4 {[%clk 0:01:40]} 25. Nd2 {[%clk 0:01:35]}  Rf6 {[%clk 0:01:38]} 26. f3 {[%clk 0:01:17]}  Be6 {[%clk 0:01:23]} 27. Nb3 {[%clk 0:01:15]}  Bf8 {[%clk 0:01:13]} 28. Na5 {[%clk 0:01:02]}  Nc2 {[%clk 0:01:07]} 29. Kf2 {[%clk 0:00:54]}  Nd4 {[%clk 0:00:52]} 30. Ra8 {[%clk 0:00:30]}  Kg7 {[%clk 0:00:48]} 31. Nc7 {[%clk 0:00:29]}  Bf7 {[%clk 0:00:45]} 32. Nb7 {[%clk 0:00:25]}  g5 {[%clk 0:00:43]} 33. h3 {[%clk 0:00:25]}  h5 {[%clk 0:00:42]} 34. Nd8 {[%clk 0:00:22]}  g4 {[%clk 0:00:37]} 35. hxg4 {[%clk 0:00:23]}  hxg4 {[%clk 0:00:37]} 36. Be2 {[%clk 0:00:22]}  gxf3 {[%clk 0:00:37]} 37. gxf3 {[%clk 0:00:23]}  Bh5 {[%clk 0:00:37]} 38. Nd5 {[%clk 0:00:19]}  Rh6 {[%clk 0:00:30]} 39. Ra7+ {[%clk 0:00:09]}  Kg8 {[%clk 0:00:30]} 40. Ra8 {[%clk 0:00:06]}  Rg6 {[%clk 0:00:27]} 41. Ke3 {[%clk 0:00:06]}  Rg2 {[%clk 0:00:26]} 42. Nc3 {[%clk 0:00:06]}  Rg3 {[%clk 0:00:23]} 43. Kf2 {[%clk 0:00:04]}  Rh3 {[%clk 0:00:21]} 44. Nb7 {[%clk 0:00:04]}  Nxe2 {[%clk 0:00:20]} 45. Nxe2 {[%clk 0:00:04]}  Rxf3+ {[%clk 0:00:21]} 46. Ke1 {[%clk 0:00:05]}  Re3 {[%clk 0:00:20]} 47. Nxd6 {[%clk 0:00:06]}  Rxe2+ {[%clk 0:00:20]} 48. Kf1 {[%clk 0:00:06]}  Rd2 {[%clk 0:00:20]} 49. Nf5 {[%clk 0:00:06]}  Bg6 {[%clk 0:00:19]} 50. Ne7+ {[%clk 0:00:06]}  Kg7 {[%clk 0:00:17]} 51. Nxg6 {[%clk 0:00:07]}  Kxg6 {[%clk 0:00:18]} 52. Rxf8 {[%clk 0:00:08]}  Rd4 {[%clk 0:00:19]} 53. Rc8 {[%clk 0:00:07]}  Rxc4 {[%clk 0:00:19]} 54. Rc6+ {[%clk 0:00:08]}  Kg5 {[%clk 0:00:20]} 55. Ke2 {[%clk 0:00:09]}  Kf4 {[%clk 0:00:19]} 56. Kd3 {[%clk 0:00:10]}  Rc1 {[%clk 0:00:19]} 57. Rc8 {[%clk 0:00:09]}  Rd1+ {[%clk 0:00:18]} 58. Kc4 {[%clk 0:00:10]}  Kxe4 {[%clk 0:00:19]} 59. Ra8 {[%clk 0:00:07]}  Rc1+ {[%clk 0:00:19]} 60. Kb3 {[%clk 0:00:08]}  Kd4 {[%clk 0:00:18]} 61. Ra4+ {[%clk 0:00:08]}  c4+ {[%clk 0:00:18]} 62. Kb2 {[%clk 0:00:09]}  Rc3 {[%clk 0:00:18]} 63. Ra8 {[%clk 0:00:08]}  Rb3+ {[%clk 0:00:18]} 64. Kc2 {[%clk 0:00:08]}  e4 {[%clk 0:00:18]} 65. Rd8+ {[%clk 0:00:09]}  Ke3 {[%clk 0:00:19]} 66. Rc8 {[%clk 0:00:09]}  Rb4 {[%clk 0:00:17]} 67. Kc3 {[%clk 0:00:09]}  Ra4 {[%clk 0:00:18]} 68. Kc2 {[%clk 0:00:09]}  Kd4 {[%clk 0:00:16]} 69. Rh8 {[%clk 0:00:10]}  Ra2+ {[%clk 0:00:16]} 70. Kc1 {[%clk 0:00:10]}  Rg2 {[%clk 0:00:17]} 71. Rd8+ {[%clk 0:00:10]}  Kc3 {[%clk 0:00:17]} 72. Rd1 {[%clk 0:00:11]}  Ra2 {[%clk 0:00:16]} 73. Rd8 {[%clk 0:00:10]}  Ra1# {[%clk 0:00:16]} 0-1


[Site "https://www.chess.com"]

[Event "Titled Tuesday Blitz August 08 Early 2023"]
[White "Swicarz, Maciej"]
[Black "Gamayev, Oleg"]
[WhiteFideId "1113585"]
[BlackFideId "2802813"]
[WhiteElo "2425"]
[BlackElo "2593"]
[Result "1-0"]
[Round "11"]
[TimeControl "180+1"]
[Date "2023.08.08"]
[WhiteClock "0:01:10"]
[BlackClock "0:02:08"]
[Board "105"]

1. c4 {[%clk 0:03:00]}  d6 {[%clk 0:03:00]} 2. Nc3 {[%clk 0:02:57]}  Nf6 {[%clk 0:02:59]} 3. g3 {[%clk 0:02:57]}  e5 {[%clk 0:02:59]} 4. Bg2 {[%clk 0:02:57]}  c6 {[%clk 0:03:00]} 5. d3 {[%clk 0:02:57]}  a5 {[%clk 0:03:01]} 6. Rb1 {[%clk 0:02:56]}  Be7 {[%clk 0:03:02]} 7. a3 {[%clk 0:02:56]}  O-O {[%clk 0:03:03]} 8. b4 {[%clk 0:02:56]}  axb4 {[%clk 0:03:04]} 9. axb4 {[%clk 0:02:57]}  Nbd7 {[%clk 0:03:03]} 10. e3 {[%clk 0:02:57]}  Qc7 {[%clk 0:03:03]} 11. Nge2 {[%clk 0:02:57]}  h6 {[%clk 0:03:03]} 12. O-O {[%clk 0:02:57]}  Rd8 {[%clk 0:03:03]} 13. b5 {[%clk 0:02:57]}  Nc5 {[%clk 0:03:03]} 14. d4 {[%clk 0:02:54]}  Ncd7 {[%clk 0:03:01]} 15. Qb3 {[%clk 0:02:51]}  exd4 {[%clk 0:02:56]} 16. exd4 {[%clk 0:02:50]}  Nf8 {[%clk 0:02:56]} 17. Nf4 {[%clk 0:02:47]}  Bf5 {[%clk 0:02:55]} 18. Rb2 {[%clk 0:02:45]}  Ng6 {[%clk 0:02:54]} 19. bxc6 {[%clk 0:02:42]}  bxc6 {[%clk 0:02:54]} 20. Qb7 {[%clk 0:02:39]}  Ra7 {[%clk 0:02:54]} 21. Qxc7 {[%clk 0:02:35]}  Rxc7 {[%clk 0:02:55]} 22. Rb6 {[%clk 0:02:33]}  Rdc8 {[%clk 0:02:45]} 23. Rd1 {[%clk 0:02:30]}  Nd7 {[%clk 0:02:41]} 24. Ra6 {[%clk 0:02:28]}  Bg5 {[%clk 0:02:37]} 25. Nxg6 {[%clk 0:02:26]}  Bxg6 {[%clk 0:02:38]} 26. Bxg5 {[%clk 0:02:24]}  hxg5 {[%clk 0:02:39]} 27. Bh3 {[%clk 0:02:24]}  f5 {[%clk 0:02:37]} 28. Bg2 {[%clk 0:02:23]}  Nf6 {[%clk 0:02:35]} 29. Na4 {[%clk 0:02:15]}  Bf7 {[%clk 0:02:33]} 30. c5 {[%clk 0:02:15]}  dxc5 {[%clk 0:02:27]} 31. dxc5 {[%clk 0:02:08]}  Bd5 {[%clk 0:02:27]} 32. Nb6 {[%clk 0:02:06]}  Bxg2 {[%clk 0:02:26]} 33. Nxc8 {[%clk 0:02:02]}  Bd5 {[%clk 0:02:25]} 34. Nb6 {[%clk 0:01:58]}  g4 {[%clk 0:02:26]} 35. Nxd5 {[%clk 0:01:54]}  Nxd5 {[%clk 0:02:26]} 36. Re1 {[%clk 0:01:50]}  Kf7 {[%clk 0:02:24]} 37. Rea1 {[%clk 0:01:50]}  g6 {[%clk 0:02:23]} 38. Ra7 {[%clk 0:01:50]}  Ke7 {[%clk 0:02:17]} 39. Rxc7+ {[%clk 0:01:50]}  Nxc7 {[%clk 0:02:18]} 40. Ra7 {[%clk 0:01:49]}  Kd7 {[%clk 0:02:18]} 41. Kf1 {[%clk 0:01:41]}  g5 {[%clk 0:02:17]} 42. Ke2 {[%clk 0:01:39]}  f4 {[%clk 0:02:15]} 43. Kd3 {[%clk 0:01:35]}  Kc8 {[%clk 0:02:15]} 44. Ke4 {[%clk 0:01:32]}  fxg3 {[%clk 0:02:14]} 45. fxg3 {[%clk 0:01:31]}  Ne6 {[%clk 0:02:15]} 46. Ra5 {[%clk 0:01:28]}  Kd7 {[%clk 0:02:15]} 47. Kf5 {[%clk 0:01:27]}  Nd4+ {[%clk 0:02:15]} 48. Kxg4 {[%clk 0:01:26]}  Nb3 {[%clk 0:02:14]} 49. Ra7+ {[%clk 0:01:25]}  Ke6 {[%clk 0:02:15]} 50. Kxg5 {[%clk 0:01:22]}  Nxc5 {[%clk 0:02:15]} 51. h4 {[%clk 0:01:21]}  Ne4+ {[%clk 0:02:15]} 52. Kf4 {[%clk 0:01:21]}  Nf6 {[%clk 0:02:15]} 53. g4 {[%clk 0:01:21]}  Nd5+ {[%clk 0:02:14]} 54. Kg5 {[%clk 0:01:21]}  c5 {[%clk 0:02:14]} 55. Ra5 {[%clk 0:01:14]}  c4 {[%clk 0:02:13]} 56. Rc5 {[%clk 0:01:14]}  c3 {[%clk 0:02:13]} 57. h5 {[%clk 0:01:14]}  Kd6 {[%clk 0:02:13]} 58. Rc4 {[%clk 0:01:14]}  Ke5 {[%clk 0:02:09]} 59. h6 {[%clk 0:01:12]}  Nf6 {[%clk 0:02:09]} 60. Rxc3 {[%clk 0:01:09]}  Ne4+ {[%clk 0:02:09]} 61. Kg6 {[%clk 0:01:10]}  Nxc3 {[%clk 0:02:08]} 62. h7 {[%clk 0:01:10]} 1-0


[Site "https://www.chess.com"]

[Event "Titled Tuesday Blitz August 08 Early 2023"]
[White "Glavina, Pablo"]
[Black "Krzywda, Andrzej"]
[WhiteFideId "100234"]
[BlackFideId "1114565"]
[WhiteElo "2515"]
[BlackElo "2377"]
[Result "1-0"]
[Round "11"]
[TimeControl "180+1"]
[Date "2023.08.08"]
[WhiteClock "0:01:09"]
[BlackClock "0:00:20"]
[Board "109"]

1. e4 {[%clk 0:03:00]}  e5 {[%clk 0:02:59]} 2. Nf3 {[%clk 0:03:00]}  Nf6 {[%clk 0:03:00]} 3. d4 {[%clk 0:02:57]}  Nxe4 {[%clk 0:03:00]} 4. Bd3 {[%clk 0:02:55]}  d5 {[%clk 0:03:00]} 5. dxe5 {[%clk 0:02:55]}  Nc5 {[%clk 0:02:59]} 6. O-O {[%clk 0:02:54]}  Bg4 {[%clk 0:02:59]} 7. Nc3 {[%clk 0:02:52]}  Nxd3 {[%clk 0:02:55]} 8. Qxd3 {[%clk 0:02:52]}  c6 {[%clk 0:02:54]} 9. Bf4 {[%clk 0:02:52]}  Nd7 {[%clk 0:02:52]} 10. Rfe1 {[%clk 0:02:50]}  Nc5 {[%clk 0:02:49]} 11. Qe3 {[%clk 0:02:50]}  Ne6 {[%clk 0:02:46]} 12. Bg3 {[%clk 0:02:50]}  Bc5 {[%clk 0:02:42]} 13. Qd3 {[%clk 0:02:48]}  O-O {[%clk 0:02:36]} 14. Rad1 {[%clk 0:02:34]}  Bh5 {[%clk 0:02:24]} 15. Ne2 {[%clk 0:02:17]}  Qb6 {[%clk 0:02:19]} 16. b3 {[%clk 0:02:12]}  Bg6 {[%clk 0:02:16]} 17. Qd2 {[%clk 0:01:57]}  Rad8 {[%clk 0:02:15]} 18. Nf4 {[%clk 0:01:51]}  Be4 {[%clk 0:02:03]} 19. Nxe6 {[%clk 0:01:42]}  fxe6 {[%clk 0:02:01]} 20. Ng5 {[%clk 0:01:42]}  Bf5 {[%clk 0:02:01]} 21. c3 {[%clk 0:01:38]}  h6 {[%clk 0:02:00]} 22. Nf3 {[%clk 0:01:38]}  Be4 {[%clk 0:02:00]} 23. b4 {[%clk 0:01:37]}  Be7 {[%clk 0:01:54]} 24. Nd4 {[%clk 0:01:37]}  c5 {[%clk 0:01:51]} 25. bxc5 {[%clk 0:01:36]}  Bxc5 {[%clk 0:01:51]} 26. h4 {[%clk 0:01:27]}  Bxd4 {[%clk 0:01:45]} 27. cxd4 {[%clk 0:01:25]}  Rc8 {[%clk 0:01:44]} 28. Rc1 {[%clk 0:01:25]}  Qa6 {[%clk 0:01:36]} 29. Qb4 {[%clk 0:01:21]}  Rxc1 {[%clk 0:01:01]} 30. Rxc1 {[%clk 0:01:20]}  Rf7 {[%clk 0:01:01]} 31. Rc8+ {[%clk 0:01:18]}  Kh7 {[%clk 0:01:01]} 32. Qd6 {[%clk 0:01:16]}  Bf5 {[%clk 0:00:42]} 33. Qd8 {[%clk 0:01:14]}  Kg6 {[%clk 0:00:39]} 34. Qe8 {[%clk 0:01:10]}  h5 {[%clk 0:00:20]} 35. Rc7 {[%clk 0:01:09]} 1-0


[Site "https://www.chess.com"]

[Event "Titled Tuesday Blitz August 08 Early 2023"]
[White "Cagara, Paulina"]
[Black "Jovic, Stanoje"]
[WhiteFideId "1124870"]
[BlackFideId "905020"]
[WhiteElo "2287"]
[BlackElo "2484"]
[Result "0-1"]
[Round "11"]
[TimeControl "180+1"]
[Date "2023.08.08"]
[WhiteClock "0:00:00"]
[BlackClock "0:00:36"]
[Board "114"]

1. e4 {[%clk 0:03:00]}  c6 {[%clk 0:02:59]} 2. d4 {[%clk 0:03:00]}  d5 {[%clk 0:02:59]} 3. exd5 {[%clk 0:03:00]}  cxd5 {[%clk 0:02:59]} 4. Bd3 {[%clk 0:02:59]}  Nc6 {[%clk 0:02:59]} 5. c3 {[%clk 0:02:59]}  e5 {[%clk 0:02:59]} 6. dxe5 {[%clk 0:02:58]}  Nxe5 {[%clk 0:03:00]} 7. Bc2 {[%clk 0:02:58]}  Bd6 {[%clk 0:02:54]} 8. Qxd5 {[%clk 0:02:55]}  Nf6 {[%clk 0:02:51]} 9. Qd1 {[%clk 0:02:51]}  O-O {[%clk 0:02:49]} 10. Ne2 {[%clk 0:02:40]}  Bg4 {[%clk 0:02:46]} 11. f3 {[%clk 0:02:39]}  Bxf3 {[%clk 0:02:32]} 12. Bg5 {[%clk 0:02:25]}  Bxg2 {[%clk 0:02:26]} 13. Rg1 {[%clk 0:02:11]}  Bc6 {[%clk 0:02:09]} 14. Nd4 {[%clk 0:02:07]}  Re8 {[%clk 0:02:07]} 15. Kf1 {[%clk 0:02:03]}  Ng6 {[%clk 0:01:59]} 16. Nd2 {[%clk 0:01:57]}  Bxh2 {[%clk 0:01:57]} 17. Rg4 {[%clk 0:01:42]}  Be5 {[%clk 0:01:50]} 18. N2f3 {[%clk 0:01:38]}  Qb6 {[%clk 0:01:38]} 19. Bxf6 {[%clk 0:01:30]}  Bxf6 {[%clk 0:01:34]} 20. Bb3 {[%clk 0:01:18]}  a5 {[%clk 0:01:31]} 21. a4 {[%clk 0:01:01]}  Rad8 {[%clk 0:01:29]} 22. Qc2 {[%clk 0:01:00]}  Qa6+ {[%clk 0:01:21]} 23. Kg1 {[%clk 0:00:59]}  Bxf3 {[%clk 0:01:18]} 24. Nxf3 {[%clk 0:00:54]}  Re2 {[%clk 0:01:16]} 25. Qf5 {[%clk 0:00:41]}  Qb6+ {[%clk 0:01:09]} 26. Nd4 {[%clk 0:00:25]}  Rxb2 {[%clk 0:00:58]} 27. Bxf7+ {[%clk 0:00:19]}  Kxf7 {[%clk 0:00:54]} 28. Rf1 {[%clk 0:00:17]}  Qd6 {[%clk 0:00:47]} 29. Rg2 {[%clk 0:00:15]}  Rxg2+ {[%clk 0:00:46]} 30. Kxg2 {[%clk 0:00:15]}  Qd5+ {[%clk 0:00:46]} 31. Qxd5+ {[%clk 0:00:15]}  Rxd5 {[%clk 0:00:46]} 32. Nb5 {[%clk 0:00:14]}  Rg5+ {[%clk 0:00:46]} 33. Kh3 {[%clk 0:00:14]}  Rh5+ {[%clk 0:00:42]} 34. Kg2 {[%clk 0:00:14]}  Rd5 {[%clk 0:00:41]} 35. c4 {[%clk 0:00:13]}  Rd3 {[%clk 0:00:40]} 36. c5 {[%clk 0:00:12]}  Nh4+ {[%clk 0:00:40]} 37. Kh2 {[%clk 0:00:11]}  Kg6 {[%clk 0:00:40]} 38. Nd6 {[%clk 0:00:10]}  Be5+ {[%clk 0:00:39]} 39. Kh1 {[%clk 0:00:09]}  Rh3+ {[%clk 0:00:37]} 40. Kg1 {[%clk 0:00:08]}  Bd4+ {[%clk 0:00:37]} 41. Rf2 {[%clk 0:00:07]}  Rf3 {[%clk 0:00:37]} 42. Kh1 {[%clk 0:00:03]}  Rxf2 {[%clk 0:00:36]} 43. Ne4 {[%clk 0:00:00]}  Ra2 {[%clk 0:00:36]} 0-1


[Site "https://www.chess.com"]

[Event "Titled Tuesday Blitz August 08 Early 2023"]
[White "Khamdamova, Afruza"]
[Black "Mikhaylova, Irina"]
[WhiteFideId "14210444"]
[BlackFideId "4109040"]
[WhiteElo "2476"]
[BlackElo "2284"]
[Result "1-0"]
[Round "11"]
[TimeControl "180+1"]
[Date "2023.08.08"]
[WhiteClock "0:00:19"]
[BlackClock "0:00:08"]
[Board "116"]

1. e4 {[%clk 0:02:48]}  c5 {[%clk 0:02:59]} 2. Nf3 {[%clk 0:02:48]}  Nc6 {[%clk 0:02:59]} 3. d4 {[%clk 0:02:49]}  cxd4 {[%clk 0:02:59]} 4. Nxd4 {[%clk 0:02:49]}  e5 {[%clk 0:02:59]} 5. Nb5 {[%clk 0:02:48]}  d6 {[%clk 0:03:00]} 6. N1c3 {[%clk 0:02:48]}  a6 {[%clk 0:03:00]} 7. Na3 {[%clk 0:02:48]}  b5 {[%clk 0:03:00]} 8. Nd5 {[%clk 0:02:48]}  Nge7 {[%clk 0:03:00]} 9. c4 {[%clk 0:02:40]}  Nd4 {[%clk 0:03:00]} 10. Be3 {[%clk 0:02:34]}  Nxd5 {[%clk 0:02:59]} 11. exd5 {[%clk 0:02:31]}  Nf5 {[%clk 0:02:58]} 12. cxb5 {[%clk 0:02:29]}  Nxe3 {[%clk 0:02:57]} 13. fxe3 {[%clk 0:02:30]}  Qh4+ {[%clk 0:02:57]} 14. g3 {[%clk 0:02:28]}  Qe4 {[%clk 0:02:57]} 15. bxa6 {[%clk 0:01:35]}  Qxh1 {[%clk 0:02:36]} 16. Qb3 {[%clk 0:01:25]}  Bxa6 {[%clk 0:01:16]} 17. Nb5 {[%clk 0:01:01]}  Rc8 {[%clk 0:00:44]} 18. Qa4 {[%clk 0:00:49]}  Bxb5 {[%clk 0:00:21]} 19. Qxb5+ {[%clk 0:00:49]}  Kd8 {[%clk 0:00:21]} 20. Qb6+ {[%clk 0:00:49]}  Kd7 {[%clk 0:00:18]} 21. Qb5+ {[%clk 0:00:38]}  Kd8 {[%clk 0:00:18]} 22. Qb6+ {[%clk 0:00:38]}  Ke8 {[%clk 0:00:17]} 23. Qb5+ {[%clk 0:00:38]}  Ke7 {[%clk 0:00:13]} 24. Qb7+ {[%clk 0:00:38]}  Kf6 {[%clk 0:00:14]} 25. Qxc8 {[%clk 0:00:37]}  Qxd5 {[%clk 0:00:14]} 26. Rd1 {[%clk 0:00:27]}  Qa5+ {[%clk 0:00:13]} 27. Kf2 {[%clk 0:00:26]}  Qxa2 {[%clk 0:00:12]} 28. Kg1 {[%clk 0:00:24]}  Qxb2 {[%clk 0:00:11]} 29. Bc4 {[%clk 0:00:24]}  Qc3 {[%clk 0:00:09]} 30. Rf1+ {[%clk 0:00:24]}  Kg5 {[%clk 0:00:09]} 31. Qf5+ {[%clk 0:00:19]}  Kh6 {[%clk 0:00:08]} 32. Qh3+ {[%clk 0:00:18]}  Kg5 {[%clk 0:00:08]} 33. Rf5+ {[%clk 0:00:19]}  Kg6 {[%clk 0:00:08]} 34. Bxf7# {[%clk 0:00:19]} 1-0


[Site "https://www.chess.com"]